bitfinex/quotes_SOLUSD_20240705
["timestamp","ask_amount","ask_price","bid_price","bid_amount"]
[1720141710972,16.2141,128.9,128.86,7.7602]
[1720141711140,7.7568,128.92,128.86,7.7603]
[1720141711342,6.6403,128.93,128.87,7.7597]
[1720141711557,14.3967,128.93,128.86,7.7603]
[1720141711944,6.6403,128.93,128.88,7.7589]
[1720141712161,15.9003,128.94,128.9,19.3937]
[1720141712352,6.298,128.97,128.91,7.7572]
[1720141712556,15.9569,128.99,128.9,27.1511]
[1720141712862,100.0,128.98,128.85,7.7604]
[1720141713047,7.7575,128.91,128.84,27.165]
[1720141713250,7.7579,128.9,128.84,19.4036]
[1720141713455,7.7579,128.9,128.83,7.762]
[1720141713761,6.5014,128.97,128.81,38.8164]
[1720141714542,6.5014,128.97,128.87,19.3984]
[1720141714748,106.5014,128.97,128.87,19.3984]
[1720141715151,7.7553,128.95,128.88,7.7589]
[1720141715449,7.7555,128.94,128.87,27.1581]
[1720141715645,7.7551,128.95,128.88,7.759]
[1720141715845,6.5014,128.97,128.9,7.7577]
[1720141716163,6.5014,128.97,128.9,7.7579]
[1720141716164,14.2552,128.97,128.9,7.7579]
[1720141716459,7.7548,128.96,128.89,27.154]
[1720141716667,14.2552,128.97,128.9,7.7578]
[1720141716965,7.7546,128.96,128.89,27.154]
[1720141717166,7.7554,128.95,128.89,19.3955]
[1720141717337,100.0,128.96,128.81,38.8164]
[1720141717766,6.5014,128.97,128.81,38.8164]
[1720141717970,6.5014,128.97,128.89,7.7584]
[1720141718465,7.7544,128.96,128.89,7.7584]
[1720141718647,7.7562,128.93,128.87,19.3987]
[1720141718852,100.0,128.96,128.84,19.4038]
[1720141719067,7.7574,128.91,128.85,7.7604]
[1720141719273,119.3864,128.96,128.81,38.8164]
[1720141719274,7.7581,128.9,128.81,19.4079]
[1720141719446,7.7581,128.9,128.84,7.7615]
[1720141719642,19.3906,128.93,128.82,7.7621]
[1720141719843,7.7581,128.9,128.82,19.4062]
[1720141720069,7.7573,128.91,128.82,19.4062]
[1720141720272,7.7569,128.92,128.85,7.7609]
[1720141720479,7.7574,128.91,128.85,7.7609]
[1720141720648,7.7574,128.91,128.84,27.1646]
[1720141720856,7.758,128.9,128.84,27.1646]
[1720141721069,119.3867,128.96,128.86,7.7598]
[1720141721367,0.77603601,128.87,128.83,7.7619]
[1720141722161,0.77603601,128.87,128.83,19.4048]
[1720141722454,8.53613601,128.87,128.8,27.1725]
[1720141722656,0.77603601,128.87,128.82,7.7625]
[1720141722853,8.53613601,128.87,128.8,27.173]
[1720141723066,0.77603601,128.87,128.8,19.4091]
[1720141723270,0.77603601,128.87,128.83,7.7616]
[1720141723471,0.77603601,128.87,128.82,27.1686]
[1720141723771,0.77603601,128.87,128.82,19.4061]
[1720141724280,0.77603601,128.87,128.82,27.1687]
[1720141724882,0.77603601,128.87,128.82,19.4061]
[1720141725181,8.53573601,128.87,128.8,7.7635]
[1720141725543,8.53573601,128.87,128.76,19.415]
[1720141725544,7.7616,128.84,128.76,19.415]
[1720141725774,8.53613601,128.87,128.8,7.7639]
[1720141725975,7.7604,128.86,128.8,7.7639]
[1720141726557,8.53593601,128.87,128.8,7.7639]
[1720141727267,0.77603601,128.87,128.8,19.4092]
[1720141727747,0.77603601,128.87,128.83,7.762]
[1720141727953,0.77603601,128.87,128.82,19.4063]
[1720141729047,0.77603601,128.87,128.83,7.762]
[1720141729585,0.77603601,128.87,128.82,19.4063]
[1720141729882,0.77603601,128.87,128.83,7.762]
[1720141730452,0.77603601,128.87,128.77,85.5164]
[1720141730889,0.77603601,128.87,128.83,7.7617]
[1720141731191,0.77603601,128.87,128.84,7.761]
[1720141731500,0.77603601,128.87,128.86,7.7603]
[1720141732205,4.0600082,128.89,128.88,27.1569]
[1720141733516,14.1992,128.99,128.92,7.7562]
[1720141734193,7.7531,128.98,128.92,7.7562]
[1720141734379,14.1992,128.99,128.92,7.7562]
[1720141734974,7.7532,128.98,128.92,7.7562]
[1720141735198,7.7538,128.97,128.91,27.1492]
[1720141735408,7.7551,128.95,128.88,19.3972]
[1720141735608,7.7543,128.97,128.9,7.7578]
[1720141735901,7.7544,128.96,128.89,7.7584]
[1720141736106,7.7544,128.96,128.9,7.7578]
[1720141736474,7.7544,128.96,128.89,7.7583]
[1720141736989,7.7544,128.96,128.9,7.7579]
[1720141737197,7.7549,128.95,128.88,19.3972]
[1720141737501,7.7568,128.92,128.86,7.7598]
[1720141737706,106.4466,128.99,128.84,85.497]
[1720141737884,106.4466,128.99,128.88,7.759]
[1720141738079,45.0,128.98,128.87,27.1585]
[1720141738285,64.3835,128.98,128.87,27.1585]
[1720141738582,7.7568,128.92,128.87,19.3988]
[1720141739319,7.7563,128.93,128.87,19.3988]
[1720141740000,7.7538,128.97,128.9,7.7578]
[1720141740318,14.1996,128.99,128.91,19.3928]
[1720141740498,14.1996,128.99,128.88,7.7589]
[1720141740499,7.7553,128.95,128.88,7.7589]
[1720141740697,7.7541,128.97,128.9,7.7578]
[1720141740908,6.4466,128.99,128.91,7.7569]
[1720141741294,0.77573501,128.92,128.9,19.3937]
[1720141741490,0.77573501,128.92,128.89,7.7579]
[1720141741722,0.77573501,128.92,128.88,7.7589]
[1720141741920,0.77573501,128.92,128.89,19.3956]
[1720141742125,0.77573501,128.92,128.91,7.7573]
[1720141742422,131.29,129.06,128.89,66.0856]
[1720141742423,6.3642,129.04,129.01,7.7511]
[1720141742625,6.3642,129.04,128.99,27.1322]
[1720141742913,15.693,129.05,128.99,27.1322]
[1720141743132,7.75,129.04,128.97,7.7534]
[1720141743430,23.442,129.05,128.98,7.7529]
[1720141743737,23.4419,129.05,128.99,7.7523]
[1720141744112,15.693,129.05,128.99,7.7523]
[1720141744316,0.1,129.09,128.97,46.69]
[1720141744517,0.1,129.09,129.05,19.3714]
[1720141744899,0.1,129.09,129.03,7.75]
[1720141745195,0.1,129.09,129.04,7.7493]
[1720141745396,7.7477,129.07,128.99,19.3812]
[1720141745620,0.1,129.09,129.0,7.7518]
[1720141745811,100.0,129.07,128.93,6.04097221]
[1720141746018,100.0,129.07,128.92,53.3355]
[1720141746210,7.7496,129.04,128.92,92.1181]
[1720141746410,100.0,129.07,128.97,19.3833]
[1720141746597,57.6076,129.09,128.97,19.3833]
[1720141746793,7.749,129.05,128.97,19.3833]
[1720141746997,38.24,129.09,129.01,7.7511]
[1720141747220,7.8466,129.09,129.02,7.7507]
[1720141747434,0.1,129.09,129.06,7.7482]
[1720141747731,16.1287,129.11,129.06,7.7482]
[1720141747933,16.1287,129.11,129.05,19.371]
[1720141748103,7.746,129.1,129.03,7.75]
[1720141748427,7.746,129.1,128.98,0.5604]
[1720141748428,16.1287,129.11,128.96,45.2733]
[1720141748717,16.1287,129.11,128.98,19.3816]
[1720141748927,7.7465,129.09,129.02,7.7507]
[1720141749094,23.8745,129.11,128.97,46.69]
[1720141749300,23.8745,129.11,129.04,7.7493]
[1720141749701,16.1287,129.11,129.05,7.7487]
[1720141750006,16.1287,129.11,129.06,7.7478]
[1720141750209,16.1287,129.11,129.0,85.4489]
[1720141750419,16.1287,129.11,129.01,19.3775]
[1720141750420,7.7472,129.08,129.01,19.3775]
[1720141750623,16.1287,129.11,129.01,19.3775]
[1720141751025,7.7472,129.08,129.01,19.3775]
[1720141751338,7.7477,129.07,128.98,19.3825]
[1720141751506,16.1287,129.11,129.0,38.7596]
[1720141751706,7.747,129.09,129.02,7.7501]
[1720141752021,16.1287,129.11,129.02,46.69]
[1720141752223,4.059582,129.13,129.07,19.3692]
[1720141752634,11.803782,129.13,129.07,19.3692]
[1720141752835,7.7452,129.12,129.05,7.7488]
[1720141753021,4.059582,129.13,129.04,19.3731]
[1720141753226,7.7447,129.12,129.04,19.3731]
[1720141753427,4.059582,129.13,129.04,19.3731]
[1720141753718,23.420282,129.13,129.01,19.3783]
[1720141753928,7.747,129.09,129.01,19.3783]
[1720141754225,7.746,129.1,129.01,19.3783]
[1720141754427,4.059582,129.13,128.99,85.4518]
[1720141754632,4.059582,129.13,129.04,7.7493]
[1720141755149,4.059582,129.13,129.03,38.7503]
[1720141755319,4.059582,129.13,129.07,7.7472]
[1720141755515,11.803782,129.13,129.07,7.7472]
[1720141755713,4.059582,129.13,129.06,19.3701]
[1720141756151,7.7448,129.12,129.06,19.3701]
[1720141756363,104.059582,129.13,129.0,7.7514]
[1720141756529,23.420882,129.13,129.0,19.3791]
[1720141756865,123.420882,129.13,128.95,38.7732]
[1720141757022,14.1279,129.08,129.01,7.7513]
[1720141757229,6.3807,129.08,129.02,7.7506]
[1720141757452,6.3807,129.08,129.03,7.7501]
[1720141758132,6.3807,129.08,129.03,19.3743]
[1720141758344,7.7454,129.11,129.03,19.3743]
[1720141759456,6.0141,129.12,129.06,7.7479]
[1720141759756,6.0141,129.12,129.07,19.3686]
[1720141760637,6.0141,129.12,129.07,27.1158]
[1720141760850,4.059582,129.13,129.07,27.1158]
[1720141761154,4.059582,129.13,129.1,7.7458]
[1720141761335,0.77477338,129.08,129.04,91.5354]
[1720141761531,0.77477338,129.08,129.06,46.69]
[1720141761739,0.77477338,129.08,129.07,27.117]
[1720141763141,0.77477338,129.08,129.04,19.3733]
[1720141763337,0.77477338,129.08,129.07,7.7477]
[1720141764634,0.77477338,129.08,129.07,54.4377]
[1720141765148,0.77477338,129.08,129.07,7.7477]
[1720141770638,4.059582,129.13,129.12,27.1065]
[1720141771386,4.059582,129.13,129.11,7.7452]
[1720141771668,4.059582,129.13,129.1,107.7457]
[1720141772636,4.059582,129.13,129.1,100.0]
[1720141774357,11.803782,129.13,129.1,100.0]
[1720141775058,4.059582,129.13,129.1,100.0]
[1720141776775,11.803982,129.13,129.1,100.0]
[1720141777772,4.059582,129.13,129.1,50.0002]
[1720141777990,7.7453,129.11,129.1,10.09991925]
[1720141778291,7.7453,129.11,129.1,7.30299908]
[1720141779065,7.7447,129.12,129.1,7.30299908]
[1720141780173,4.059582,129.13,129.1,7.30299908]
[1720141780663,11.803782,129.13,129.1,7.30299908]
[1720141781089,4.059582,129.13,129.1,7.30299908]
[1720141781286,0.77459334,129.11,129.1,15.04889908]
[1720141781865,0.77459334,129.11,129.1,7.30299908]
[1720141783502,0.77459334,129.11,129.1,15.04889908]
[1720141783881,0.77459334,129.11,129.1,7.30299908]
[1720141787489,8.51989334,129.11,129.1,7.30299908]
[1720141787680,0.77459334,129.11,129.1,7.30299908]
[1720141788191,8.51989334,129.11,129.1,7.30299908]
[1720141788981,0.77459334,129.11,129.1,7.30299908]
[1720141789487,8.51989334,129.11,129.1,7.30299908]
[1720141790387,0.77459334,129.11,129.1,7.30299908]
[1720141791415,8.51989334,129.11,129.1,7.30299908]
[1720141791815,0.77459334,129.11,129.1,7.30299908]
[1720141792314,8.51989334,129.11,129.1,7.30299908]
[1720141794013,8.51989334,129.11,129.1,1.19716669]
[1720141794326,7.7466,129.09,129.03,7.7496]
[1720141794612,7.7461,129.1,129.03,7.7496]
[1720141794820,7.7467,129.09,129.03,7.7496]
[1720141795333,7.7467,129.09,129.02,7.7505]
[1720141796004,7.7467,129.09,129.03,7.75]
[1720141796525,17.34979334,129.11,129.01,35.3482]
[1720141796526,17.34979334,129.11,129.01,19.3775]
[1720141796733,7.7489,129.05,128.99,7.7524]
[1720141796901,7.7483,129.06,129.0,7.7518]
[1720141797302,7.749,129.05,128.98,19.3819]
[1720141797507,7.7484,129.06,128.99,7.752]
[1720141797906,7.7484,129.06,128.98,19.3819]
[1720141798112,7.7478,129.07,129.0,7.7518]
[1720141798314,7.7478,129.07,129.01,7.7513]
[1720141798805,7.7484,129.06,129.0,7.7517]
[1720141799132,151.4643,129.1,128.97,62.6789]
[1720141799133,6.4643,129.1,128.97,62.6789]
[1720141799420,6.4643,129.1,129.02,7.7502]
[1720141799596,14.2107,129.1,129.03,7.75]
[1720141799793,6.4643,129.1,129.03,7.75]
[1720141800342,14.2104,129.1,129.03,7.75]
[1720141800501,14.2104,129.1,128.97,15.9889]
[1720141800502,7.7482,129.07,129.0,7.7518]
[1720141800713,7.7487,129.06,128.99,19.3802]
[1720141801036,7.7492,129.05,128.99,27.1326]
[1720141801205,100.0,129.09,128.99,27.1326]
[1720141801407,19.3684,129.08,128.98,7.753]
[1720141801629,6.3797,129.02,128.96,19.3848]
[1720141801942,6.3797,129.02,128.93,19.3892]
[1720141802440,14.1308,129.02,128.96,7.7542]
[1720141802606,6.3797,129.02,128.91,19.3922]
[1720141802807,106.3797,129.02,128.88,45.3988]
[1720141803018,46.7629,129.03,128.88,27.1561]
[1720141803019,6.1871,128.94,128.88,27.1561]
[1720141803223,6.1871,128.94,128.89,7.7584]
[1720141803412,6.1689,128.97,128.9,19.3941]
[1720141803938,7.7544,128.96,128.9,19.3941]
[1720141804306,7.7566,128.93,128.84,6.18046467]
[1720141804516,7.7555,128.94,128.87,7.7594]
[1720141804804,15.5907,128.96,128.87,7.7597]
[1720141805005,7.756,128.94,128.87,7.7597]
[1720141805201,15.5907,128.96,128.83,6.6057]
[1720141805434,15.5907,128.96,128.82,21.35147404]
[1720141805435,15.5907,128.96,128.82,15.2347]
[1720141805637,195.5384,128.95,128.84,19.4026]
[1720141806015,7.7573,128.91,128.84,27.1637]
[1720141806308,7.7581,128.9,128.84,19.4026]
[1720141806632,6.0282,128.89,128.81,19.5081]
[1720141807007,13.7868,128.89,128.82,7.7626]
[1720141807239,7.7591,128.88,128.81,27.2714]
[1720141807411,7.7599,128.87,128.81,19.5081]
[1720141807618,7.7592,128.88,128.81,7.8632]
[1720141807828,7.7597,128.87,128.81,0.1]
[1720141808036,21.9033,128.89,128.81,0.1]
[1720141808208,6.0282,128.89,128.84,7.7615]
[1720141808416,6.0282,128.89,128.83,7.7619]
[1720141808733,4.0957513,128.91,128.81,0.1]
[1720141808937,4.0957513,128.91,128.82,6.0328]
[1720141809121,4.0957513,128.91,128.9,7.7579]
[1720141809716,4.0957513,128.91,128.89,27.1535]
[1720141809917,4.0957513,128.91,128.89,19.3951]
[1720141810238,4.0957513,128.91,128.88,19.3966]
[1720141810445,4.0957513,128.91,128.9,7.7579]
[1720141810814,4.0957513,128.91,128.9,14.192]
[1720141811017,6.2551,129.0,128.95,7.7546]
[1720141811216,6.2551,129.0,128.91,27.1499]
[1720141811522,6.2551,129.0,128.86,6.2793]
[1720141811724,14.0072,129.0,128.93,7.7556]
[1720141812217,7.7526,128.99,128.91,19.3926]
[1720141812416,7.7526,128.99,128.92,7.7565]
[1720141812718,7.7545,128.96,128.89,7.7585]
[1720141813026,7.7547,128.96,128.88,19.3973]
[1720141813331,7.7545,128.96,128.89,7.7585]
[1720141813528,14.3031,128.93,128.85,19.4017]
[1720141813721,7.7568,128.92,128.85,19.4017]
[1720141814042,7.7574,128.91,128.85,19.4017]
[1720141814222,7.7572,128.92,128.82,44.9554]
[1720141814418,7.7572,128.92,128.85,7.7608]
[1720141814619,6.547,128.93,128.84,27.1645]
[1720141814823,7.7574,128.91,128.84,27.1645]
[1720141815027,7.7574,128.91,128.85,7.7607]
[1720141815325,7.758,128.9,128.84,19.4031]
[1720141815529,6.547,128.93,128.86,7.7601]
[1720141815530,7.7573,128.92,128.86,7.7601]
[1720141815729,7.7573,128.91,128.84,19.4031]
[1720141815926,100.0,128.92,128.81,27.2706]
[1720141816127,7.7598,128.87,128.81,19.5079]
[1720141816332,100.0,128.89,128.81,0.1]
[1720141816735,6.4712,128.88,128.81,0.1]
[1720141816942,7.7622,128.83,128.81,0.1]
[1720141817139,7.7627,128.82,128.81,0.1]
[1720141817918,7.7623,128.83,128.81,0.1]
[1720141818120,7.7627,128.82,128.81,0.1]
[1720141818946,19.4034,128.85,128.74,19.4174]
[1720141818947,6.6335,128.83,128.74,19.4174]
[1720141819131,6.6335,128.83,128.74,27.1849]
[1720141819446,7.7622,128.83,128.74,19.4174]
[1720141819625,7.7616,128.84,128.78,7.7651]
[1720141819951,6.6335,128.86,128.76,19.4151]
[1720141820154,100.0,128.85,128.74,7.7675]
[1720141820327,7.7634,128.81,128.74,7.7675]
[1720141820527,119.4063,128.83,128.71,0.1]
[1720141820728,7.7653,128.78,128.71,7.8691]
[1720141820949,119.4092,128.81,128.71,0.1]
[1720141821125,6.3352,128.78,128.71,0.1]
[1720141821331,0.77694041,128.72,128.71,0.1]
[1720141823454,0.77694041,128.72,128.7,0.8329727]
[1720141823455,114.223,128.71,128.7,0.8329727]
[1720141824029,7.773,128.65,128.64,78.83513978]
[1720141824440,7.773,128.65,128.61,0.1]
[1720141824637,106.4536,128.71,128.62,7.7748]
[1720141824845,6.4536,128.71,128.63,19.4348]
[1720141825044,14.223,128.71,128.63,27.2084]
[1720141825252,7.7712,128.69,128.62,7.7748]
[1720141825432,7.7712,128.69,128.61,0.1]
[1720141825433,100.0,128.68,128.61,0.1]
[1720141825643,7.7725,128.66,128.61,0.1]
[1720141825867,7.7737,128.64,128.61,0.1]
[1720141826034,7.773,128.65,128.61,0.1]
[1720141826233,7.7737,128.64,128.61,0.1]
[1720141826730,3.71588424,128.66,128.61,0.1]
[1720141827333,3.71588424,128.66,128.62,7.7747]
[1720141827558,3.71588424,128.66,128.63,7.7741]
[1720141827761,3.71588424,128.66,128.65,7.773]
[1720141828343,3.71588424,128.66,128.63,27.2086]
[1720141828647,3.71588424,128.66,128.61,0.1]
[1720141828648,7.7731,128.65,128.61,0.1]
[1720141828848,3.71588424,128.66,128.61,7.8752]
[1720141829038,3.71588424,128.66,128.62,7.7744]
[1720141829462,3.71588424,128.66,128.61,0.1]
[1720141829639,3.71588424,128.66,128.65,7.773]
[1720141830434,0.77694041,128.72,128.69,7.77]
[1720141830769,0.77694041,128.72,128.65,38.8648]
[1720141830947,0.77694041,128.72,128.71,7.7694]
[1720141831645,0.77694041,128.72,128.7,19.4239]
[1720141831646,6.5155,128.83,128.75,7.7667]
[1720141831854,6.5155,128.83,128.74,19.4185]
[1720141831855,100.0,128.82,128.74,19.4185]
[1720141832061,7.7656,128.78,128.71,19.4232]
[1720141832373,7.2656,128.78,128.71,19.4232]
[1720141832548,100.0,128.79,128.7,7.7696]
[1720141832744,100.0,128.79,128.66,20.0]
[1720141832745,7.7651,128.79,128.66,20.0]
[1720141832944,100.0,128.8,128.65,38.8648]
[1720141833152,7.7651,128.79,128.65,38.8648]
[1720141833378,103.46534648,128.82,128.69,38.8518]
[1720141833555,7.7652,128.78,128.72,19.4206]
[1720141834064,103.46534648,128.82,128.71,7.7693]
[1720141834444,7.7652,128.78,128.71,7.7693]
[1720141835661,7.7657,128.78,128.69,19.426]
[1720141835862,7.7657,128.77,128.71,7.7693]
[1720141836369,7.7678,128.74,128.66,19.4306]
[1720141836545,7.7664,128.76,128.69,7.7705]
[1720141836873,7.7693,128.72,128.65,7.7729]
[1720141837037,106.2387,128.75,128.65,19.4319]
[1720141837251,7.7692,128.72,128.65,27.2048]
[1720141837451,100.0,128.73,128.62,19.4365]
[1720141837751,7.7695,128.71,128.64,7.7735]
[1720141838157,100.0,128.71,128.62,27.2107]
[1720141838353,100.0,128.71,128.61,0.1]
[1720141838556,100.0,128.69,128.61,0.1]
[1720141838766,7.7734,128.65,128.61,0.1]
[1720141838968,11.84151031,128.67,128.61,0.1]
[1720141839678,4.06961031,128.67,128.61,0.1]
[1720141840175,4.06961031,128.67,128.63,7.7738]
[1720141840384,4.06961031,128.67,128.63,19.4346]
[1720141841178,4.06961031,128.67,128.63,27.2083]
[1720141841360,0.77742362,128.64,128.61,0.1]
[1720141842960,0.77742362,128.64,128.61,19.5378]
[1720141843272,0.77742362,128.64,128.63,7.7742]
[1720141843754,0.77742362,128.64,128.61,106.16632913]
[1720141843956,0.77742362,128.64,128.62,7.7746]
[1720141844266,0.77742362,128.64,128.63,7.7742]
[1720141845677,4.06961031,128.67,128.66,27.2034]
[1720141845847,3.46534648,128.74,128.7,7.7695]
[1720141846048,3.46534648,128.74,128.65,7.7725]
[1720141846360,100.0,128.75,128.66,27.2027]
[1720141847059,7.7691,128.72,128.66,19.4306]
[1720141847775,19.4153,128.77,128.66,19.4306]
[1720141847776,7.7682,128.73,128.67,7.7717]
[1720141848075,7.7675,128.75,128.69,7.7704]
[1720141848450,8.01759724,128.78,128.68,19.4272]
[1720141848676,7.7679,128.74,128.68,19.4272]
[1720141849049,30.89654372,128.78,128.64,38.8679]
[1720141849050,7.7695,128.71,128.65,19.4316]
[1720141849759,7.7689,128.72,128.65,19.4316]
[1720141850286,7.7683,128.73,128.66,7.7719]
[1720141850458,7.769,128.72,128.66,7.7719]
[1720141850654,7.7679,128.74,128.67,19.4289]
[1720141850888,7.7665,128.76,128.69,7.7703]
[1720141851055,7.7665,128.76,128.69,27.1964]
[1720141851261,7.7671,128.75,128.69,27.1964]
[1720141851761,7.7664,128.76,128.69,27.196]
[1720141852212,7.7693,128.72,128.66,19.4302]
[1720141852417,100.0,128.75,128.63,21.3006]
[1720141852711,119.4184,128.75,128.66,7.7722]
[1720141852913,7.7689,128.72,128.66,7.7722]
[1720141853081,19.4184,128.75,128.66,7.7722]
[1720141853286,7.7683,128.73,128.66,7.7722]
[1720141853717,7.7688,128.72,128.66,7.7722]
[1720141854384,45.0,128.74,128.63,21.3006]
[1720141855086,45.0,128.74,128.64,19.4329]
[1720141855087,7.7698,128.71,128.64,19.4329]
[1720141855306,100.0,128.69,128.61,0.1]
[1720141855482,64.4286,128.68,128.61,0.1]
[1720141855687,7.7748,128.62,128.61,0.1]
[1720141855884,7.7723,128.67,128.61,0.1]
[1720141856108,145.0,128.7,128.61,0.1]
[1720141856310,7.7731,128.65,128.61,0.1]
[1720141856490,100.0,128.68,128.61,0.1]
[1720141856686,7.7731,128.65,128.61,0.1]
[1720141857212,3.46534648,128.69,128.61,0.1]
[1720141857509,7.771,128.69,128.62,7.7742]
[1720141857812,6.3435,128.71,128.65,7.7725]
[1720141858018,6.3435,128.71,128.66,7.7722]
[1720141858217,6.3435,128.71,128.65,7.7728]
[1720141858433,7.7702,128.7,128.64,27.2069]
[1720141858709,7.7712,128.68,128.62,7.7743]
[1720141859015,106.3435,128.71,128.61,0.1]
[1720141859217,19.4256,128.7,128.61,0.1]
[1720141859422,7.7718,128.68,128.61,0.1]
[1720141859590,7.7719,128.67,128.61,7.8753]
[1720141860134,109.80884648,128.71,128.62,7.7745]
[1720141860424,9.80884648,128.71,128.61,38.9767]
[1720141860722,7.7701,128.7,128.64,19.4333]
[1720141860928,9.80884648,128.71,128.61,19.5378]
[1720141861101,7.7712,128.68,128.62,7.7745]
[1720141861415,0.77748407,128.63,128.62,7.7745]
[1720141861830,6.1065,128.75,128.63,16.5065]
[1720141861994,14.12407652,128.79,128.73,27.1878]
[1720141862195,13.8711,128.79,128.73,19.4197]
[1720141862396,6.1065,128.79,128.71,7.7692]
[1720141862694,7.7669,128.76,128.7,19.4242]
[1720141862896,106.1065,128.79,128.67,19.4292]
[1720141863194,100.0,128.77,128.64,19.4332]
[1720141863395,100.0,128.75,128.66,7.7724]
[1720141864000,7.769,128.72,128.64,19.4332]
[1720141864199,7.7706,128.69,128.63,16.5065]
[1720141864407,179.6426,128.74,128.63,16.5065]
[1720141864708,100.0,128.72,128.65,19.4318]
[1720141864907,6.477,128.71,128.62,6.3896]
[1720141865231,7.7707,128.69,128.62,19.437]
[1720141865442,7.7701,128.7,128.63,7.7741]
[1720141865624,7.7701,128.7,128.62,19.437]
[1720141865625,14.2464,128.71,128.62,19.437]
[1720141865946,21.6996,128.74,128.68,7.7706]
[1720141866232,14.2446,128.74,128.68,7.7706]
[1720141866439,3.46534648,128.76,128.69,7.7703]
[1720141866602,3.46534648,128.76,128.72,7.7685]
[1720141866933,7.7662,128.77,128.71,19.4227]
[1720141867106,7.7677,128.74,128.68,19.4274]
[1720141867634,7.766,128.77,128.71,7.7693]
[1720141867854,6.1431,128.78,128.72,7.7686]
[1720141868527,13.7663,128.81,128.72,19.4209]
[1720141868707,6.0024,128.86,128.72,22.0259]
[1720141868913,13.7628,128.86,128.79,7.7645]
[1720141869113,6.3963,128.91,128.73,66.62]
[1720141869302,7.7605,128.86,128.73,66.62]
[1720141869501,7.7603,128.86,128.79,7.7644]
[1720141869723,19.396,128.9,128.78,19.4127]
[1720141869924,104.2677411,128.89,128.78,19.4127]
[1720141870105,7.7623,128.83,128.75,19.4172]
[1720141870311,7.7623,128.83,128.76,7.7662]
[1720141870538,7.7615,128.84,128.77,7.7655]
[1720141871240,7.762,128.84,128.76,7.766]
[1720141871414,7.762,128.84,128.76,7.7659]
[1720141871614,7.762,128.84,128.75,19.4172]
[1720141871943,7.7622,128.83,128.77,7.7657]
[1720141872133,100.0,128.87,128.78,7.765]
[1720141872310,7.7616,128.84,128.77,7.7656]
[1720141872634,100.0,128.87,128.75,27.1836]
[1720141872834,100.0,128.83,128.67,67.90905791]
[1720141873038,100.0,128.81,128.71,19.4222]
[1720141873339,7.7669,128.76,128.69,7.7701]
[1720141873508,7.7677,128.74,128.68,19.4274]
[1720141873707,119.4124,128.79,128.68,19.4274]
[1720141873912,7.7671,128.75,128.68,27.1981]
[1720141874324,7.7677,128.74,128.68,27.1981]
[1720141874523,7.7677,128.74,128.68,19.4274]
[1720141874782,7.7682,128.73,128.66,7.7721]
[1720141875116,119.4158,128.77,128.63,91.5204]
[1720141875117,100.0,128.79,128.67,19.4286]
[1720141875317,7.7672,128.75,128.69,7.7703]
[1720141875545,7.7672,128.75,128.67,19.4286]
[1720141876012,157.7603,128.8,128.67,19.4286]
[1720141876213,7.7687,128.73,128.67,19.4286]
[1720141877711,7.7687,128.73,128.67,27.2002]
[1720141878244,7.769,128.72,128.65,7.7726]
[1720141878550,19.4227,128.72,128.61,19.5379]
[1720141878737,7.7706,128.69,128.61,0.1]
[1720141878938,100.0,128.71,128.61,7.875]
[1720141879139,135.2533,128.73,128.64,7.7733]